fUSD/lending_fUSD_20240606
["ID","MTS","AMOUNT","RATE_DAILY","PERIOD"]
[328648730,1717675839906,-158.86,0.00024384,2]
[328648731,1717675839917,-390.37,0.00024384,2]
[328648732,1717675839927,-151.0,0.00024658,7]
[328648733,1717675839936,-151.0,0.00024658,7]
[328648734,1717675839947,-151.0,0.00024658,7]
[328648735,1717675839958,-194.411714,0.00024658,7]
[328648736,1717675839968,-202.709205,0.00024798,7]
[328648737,1717675839978,-151.0,0.00024798,7]
[328648738,1717675839988,-3923.45973711,0.00024798,2]
[328648739,1717675839997,-3923.45973709,0.00024798,2]
[328648740,1717675840007,-3923.45973709,0.00024798,2]
[328648741,1717675840017,-3923.45973709,0.00024798,2]
[328648742,1717675840028,-3923.45973709,0.00024798,2]
[328648743,1717675840038,-3923.45973709,0.00024798,2]
[328648744,1717675840048,-3923.45973709,0.00024798,2]
[328648745,1717675840059,-1870.66348409,0.00024799,2]
[328648746,1717675840069,-1870.66348402,0.00024799,2]
[328648747,1717675840079,-1870.66348402,0.00024799,2]
[328648748,1717675840089,-1870.66348402,0.00024799,2]
[328648749,1717675840099,-1870.66348402,0.00024799,2]
[328648750,1717675840109,-1870.66348402,0.00024799,2]
[328648751,1717675840118,-1870.66348402,0.00024799,2]
[328648752,1717675840128,-1000.0,0.0002482,2]
[328648753,1717675840137,-1200.0,0.00024874,2]
[328648754,1717675840147,-500.0,0.00024874,2]
[328648755,1717675840157,-225.04645167,0.00025,2]
[328648756,1717675840167,-713.77198143,0.00025,2]
[328648757,1717675840178,-706.05483356,0.00025,2]
[328648758,1717675840188,-1250.0,0.00025,2]
[328648759,1717675840198,-151.0,0.00025068,7]
[328648760,1717675840211,-151.0,0.00025068,7]
[328648761,1717675840220,-1869.17864,0.00025068,7]
[328648762,1717675840231,-1869.17864,0.00025068,7]
[328648763,1717675840242,-151.0,0.00025068,7]
[328648764,1717675840253,-151.0,0.00025068,7]
[328648765,1717675840263,-151.0,0.00025068,7]
[328648766,1717675840273,-664.67,0.00025068,2]
[328648767,1717675840283,-78777.21570373,0.00025068,2]
[328648768,1717675840294,-900.0,0.00025148,2]
[328648769,1717675840304,-641.26,0.0002529,2]
[328648770,1717675840314,-151.0,0.0002529,7]
[328648771,1717675840324,-287.869641,0.0002529,7]
[328648772,1717675840333,-287.869641,0.0002529,7]
[328648773,1717675840343,-311.130709,0.0002529,7]
[328648774,1717675840354,-151.0,0.0002529,7]
[328648775,1717675840364,-311.130709,0.0002529,7]
[328648776,1717675840374,-422.102804,0.0002529,7]
[328648777,1717675840383,-422.102804,0.0002529,7]
[328648778,1717675840543,-151.0,0.0002529,7]
[328648779,1717675840567,-151.0,0.0002529,7]
[328648780,1717675840577,-151.0,0.0002529,7]
[328648781,1717675840587,-194.411714,0.0002529,7]
[328648782,1717675840597,-23875.11884162,0.000253,2]
[328648783,1717675840608,-1200.0,0.00025422,2]
[328648784,1717675840619,-319.47107319,0.00025509,2]
[328648785,1717675840629,-86061.9925417,0.00025536,2]
[328648791,1717675841040,-3938.0074583,0.00025536,2]
[328648792,1717675841051,-151.0,0.00025536,7]
[328648793,1717675841060,-151.0,0.00025536,7]
[328648794,1717675841070,-151.0,0.00025536,7]
[328648795,1717675841079,-151.0,0.00025536,7]
[328648796,1717675841089,-151.0,0.00025536,7]
[328648797,1717675841099,-151.0,0.00025536,7]
[328648798,1717675841109,-151.0,0.00025536,7]
[328648799,1717675841118,-104.9925417,0.00025536,7]
[328648800,1717675841139,-46.0074583,0.00025536,7]
[328648801,1717675841149,-151.0,0.00025536,7]
[328648802,1717675841159,-308.001283,0.00025536,7]
[328648803,1717675841168,-308.001283,0.00025536,7]
[328648804,1717675841178,-151.0,0.00025536,7]
[328648805,1717675841187,-151.0,0.00025536,7]
[328648806,1717675841197,-151.0,0.00025536,7]
[328648807,1717675841211,-151.0,0.00025536,7]
[328648808,1717675841221,-161.478198,0.00025536,7]
[328648809,1717675841231,-161.478198,0.00025536,7]
[328648810,1717675841240,-151.0,0.00025536,7]
[328648811,1717675841251,-151.0,0.00025536,7]
[328648812,1717675841261,-220.982325,0.00025536,7]
[328648813,1717675841271,-151.0,0.00025536,7]
[328648814,1717675841280,-151.0,0.00025536,7]
[328648815,1717675841290,-191.074099,0.00025536,7]
[328648816,1717675841300,-191.074099,0.00025536,7]
[328648817,1717675841309,-215.91804,0.00025536,7]
[328648818,1717675841319,-215.91804,0.00025536,7]
[328648819,1717675841329,-151.0,0.00025536,7]
[328648820,1717675841339,-163.187857,0.00025536,7]
[328648821,1717675841350,-1869.17864,0.00025536,7]
[328648822,1717675841360,-1869.17864,0.00025536,7]
[328648823,1717675841369,-151.0,0.00025536,7]
[328648824,1717675841379,-151.0,0.00025536,7]
[328648825,1717675841389,-151.0,0.00025536,7]
[328648826,1717675841399,-150.0,0.00025595,2]
[328648827,1717675841409,-150.0,0.00025633,2]
[328648828,1717675841420,-150.0,0.00025642,2]
[328648829,1717675841430,-150.0,0.00025651,2]
[328648830,1717675841441,-151.0,0.00025651,7]
[328648831,1717675841451,-287.869641,0.00025651,7]
[328648832,1717675841460,-287.869641,0.00025651,7]
[328648833,1717675841470,-311.130709,0.00025651,7]
[328648834,1717675841480,-151.0,0.00025651,7]
[328648835,1717675841489,-311.130709,0.00025651,7]
[328648836,1717675841498,-422.102804,0.00025651,7]
[328648837,1717675841508,-422.102804,0.00025651,7]
[328648838,1717675841519,-151.0,0.00025651,7]
[328648839,1717675841528,-151.0,0.00025651,7]
[328648840,1717675841538,-151.0,0.00025651,7]
[328648841,1717675841547,-194.411714,0.00025651,7]
[328648842,1717675841558,-150.0,0.00025665,2]
[328648843,1717675841567,-150.0,0.00025667,2]
[328648844,1717675841577,-150.0,0.00025671,2]
[328648845,1717675841588,-150.0,0.00025672,2]
[328648846,1717675841597,-900.0,0.00025696,2]
[328648847,1717675841606,-150.0,0.00025697,2]
[328648848,1717675841627,-150.0,0.000257,2]
[328648849,1717675841638,-150.0,0.00025712,2]
[328648850,1717675841649,-1846.66022326,0.00025732,2]
[328648851,1717675841659,-150.0,0.00025734,2]
[328648852,1717675841670,-150.0,0.00025746,2]
[328648853,1717675841681,-269.12,0.00025753,2]
[328648854,1717675841692,-422.3,0.00025753,2]
[328648855,1717675841703,-150.0,0.00025753,2]
[328648856,1717675841714,-150.0,0.00025753,2]
[328648857,1717675841724,-353.13,0.00025753,2]
[328648858,1717675841734,-235.86,0.00025753,2]
[328648859,1717675841745,-164.06,0.00025753,2]
[328648860,1717675841756,-380.77977494,0.00025753,2]
[328648861,1717675841780,-670.36022506,0.00025753,2]
[328648862,1717675841790,-150.0,0.00025753,2]
[328648863,1717675841800,-422.3,0.00025753,2]
[328648864,1717675841810,-150.0,0.00025753,2]
[328648865,1717675841820,-150.0,0.00025753,2]
[328648866,1717675841831,-164.06,0.00025753,2]
[328648867,1717675841841,-150.0,0.00025753,2]
[328648868,1717675841852,-353.13,0.00025753,2]
[328648869,1717675841862,-150.0,0.00025753,2]
[328648870,1717675841873,-150.0,0.00025753,2]
[328648871,1717675841884,-353.13,0.00025753,2]
[328648872,1717675841894,-150.0,0.00025753,2]
[328648873,1717675841905,-422.3,0.00025753,2]
[328648874,1717675841916,-164.06,0.00025753,2]
[328648875,1717675841927,-422.3,0.00025753,2]
[328648876,1717675841938,-150.0,0.00025753,2]
[328648877,1717675841948,-164.06,0.00025753,2]
[328648878,1717675841958,-150.0,0.00025753,2]
[328648879,1717675841969,-150.0,0.00025753,2]
[328648880,1717675841979,-353.13,0.00025753,2]
[328648881,1717675841989,-164.06,0.00025753,2]
[328648882,1717675842000,-150.0,0.00025753,2]
[328648883,1717675842011,-353.13,0.00025753,2]
[328648884,1717675842022,-422.3,0.00025753,2]
[328648885,1717675842032,-150.0,0.00025753,2]
[328648886,1717675842043,-150.0,0.00025753,2]
[328648887,1717675842053,-150.0,0.00025772,2]
[328648888,1717675842063,-150.0,0.00025778,2]
[328648889,1717675842072,-150.0,0.0002578,2]
[328648890,1717675842083,-150.0,0.00025801,2]
[328648891,1717675842093,-150.0,0.00025807,2]
[328648892,1717675842105,-150.0,0.00025832,2]
[328648893,1717675842115,-150.0,0.00025835,2]
[328648894,1717675842125,-150.0,0.00025854,2]
[328648895,1717675842135,-150.0,0.0002586,2]
[328648896,1717675842145,-150.0,0.00025868,2]
[328648897,1717675842155,-150.0,0.00025881,2]
[328648898,1717675842166,-150.0,0.00025886,2]
[328648899,1717675842176,-225.05205015,0.00025928,2]
[328648900,1717675842186,-150.0,0.00025935,2]
[328648901,1717675842196,-150.0,0.00025954,2]
[328648902,1717675842209,-178.32537667,0.0002596,2]
[328648903,1717675842221,-1200.0,0.0002597,2]
[328648904,1717675842232,-500.0,0.0002597,2]
[328648905,1717675842242,-500.0,0.00025981,2]
[328648906,1717675842258,-200.0,0.00025981,2]
[328648907,1717675842268,-500.0,0.00026,2]
[328648908,1717675842278,-150.0,0.00026009,2]
[328648909,1717675842290,-150.0,0.00026015,2]
[328648910,1717675842302,-1500.0,0.00026029,2]
[328648911,1717675842314,-1522.05576886,0.00026043,2]
[328648912,1717675842324,-150.0,0.00026054,2]
[328648913,1717675842335,-150.0,0.00026064,2]
[328648914,1717675842345,-294.21406988,0.00026066,2]
[328648915,1717675842357,-150.0,0.00026069,2]
[328648916,1717675842367,-488.0,0.000261,9]
[328648917,1717675842377,-160.0,0.000261,2]
[328648918,1717675842387,-345.0,0.000261,2]
[328648919,1717675842397,-150.0,0.000261,4]
[328648920,1717675842408,-971.50410267,0.00026189,2]
[328648921,1717675842418,-8.83524576,0.0002619,2]
[328648922,1717675842428,-213.0,0.0002619,2]
[328648923,1717675842439,-505.81932521,0.00026244,2]
[328648924,1717675842450,-500.0,0.00026244,2]
[328648925,1717675842460,-900.0,0.00026244,2]
[328648926,1717675842470,-3923.45973709,0.00026322,2]
[328648927,1717675842481,-1870.66348402,0.00026322,2]
[328648928,1717675842491,-1200.0,0.00026518,2]
[328648929,1717675842501,-151.0,0.00026575,7]
[328648930,1717675842512,-151.0,0.00026575,7]
[328648931,1717675842523,-151.0,0.00026575,7]
[328648932,1717675842533,-151.0,0.00026575,7]
[328648933,1717675842544,-151.0,0.00026575,7]
[328648934,1717675842554,-199.390465,0.00026575,7]
[328648935,1717675842564,-199.390465,0.00026575,7]
[328648936,1717675842574,-151.0,0.00026575,7]
[328648937,1717675842585,-151.0,0.00026575,7]
[328648938,1717675842595,-151.0,0.00026575,7]
[328648939,1717675842605,-151.0,0.00026575,7]
[328648940,1717675842616,-151.0,0.00026575,7]
[328648941,1717675842626,-281.697732,0.00026575,7]
[328648942,1717675842636,-281.697732,0.00026575,7]
[328648943,1717675842646,-151.0,0.00026575,7]
[328648944,1717675842656,-151.0,0.00026575,7]
[328648945,1717675842666,-151.0,0.00026575,7]
[328648946,1717675842676,-151.0,0.00026575,7]
[328648947,1717675842686,-191.074099,0.00026575,7]
[328648948,1717675842696,-191.074099,0.00026575,7]
[328648949,1717675842706,-215.91804,0.00026575,7]
[328648950,1717675842715,-215.91804,0.00026575,7]
[328648951,1717675842725,-422.3,0.00026575,2]
[328648952,1717675842735,-353.13,0.00026575,2]
[328648953,1717675842745,-164.06,0.00026575,2]
[328648954,1717675842755,-353.13,0.00026575,2]
[328648955,1717675842765,-164.06,0.00026575,2]
[328648956,1717675842776,-422.3,0.00026575,2]
[328648957,1717675842786,-163.63,0.00026575,2]
[328648958,1717675842796,-352.16,0.00026575,2]
[328648959,1717675842807,-188.55672582,0.00026576,2]
[328648960,1717675842817,-2051.3470854,0.000266,2]
[328648961,1717675842827,-150.0,0.000266,5]
[328648962,1717675842836,-900.0,0.00026792,2]
[328648963,1717675842847,-201.0,0.0002687,2]
[328648964,1717675842859,-213.0,0.0002687,2]
[328648965,1717675842871,-175.52586236,0.00026966,2]
[328648966,1717675842881,-319.47107319,0.00026973,2]
[328648967,1717675842893,-1000.0,0.00027,6]
[328648968,1717675842904,-639.96226292,0.00027,2]
[328648969,1717675842914,-18534.80354737,0.00027,2]
[328648970,1717675842925,-1300.0,0.00027,2]
[328648971,1717675842936,-299.753212,0.00027,7]
[328648972,1717675842946,-299.753212,0.00027,7]
[328648973,1717675843058,-151.0,0.00027,7]
[328648974,1717675843069,-151.0,0.00027,7]
[328648976,1717675843078,-308.001283,0.00027,7]
[328648978,1717675843088,-308.001283,0.00027,7]
[328648979,1717675843098,-500.0,0.00027066,2]
[328648980,1717675843111,-150.0,0.000271,5]
[328648981,1717675843120,-1846.66022326,0.00027121,2]
[328648982,1717675843129,-900.0,0.0002734,2]
[328648983,1717675843138,-500.0,0.0002734,2]
[328648984,1717675843147,-202.240085,0.0002734,7]
[328648985,1717675843157,-151.0,0.0002734,7]
[328648986,1717675843166,-151.0,0.0002734,7]
[328648987,1717675843175,-151.0,0.0002734,7]
[328648988,1717675843184,-151.0,0.0002734,7]
[328648989,1717675843193,-151.0,0.0002734,7]
[328648990,1717675843204,-151.0,0.0002734,7]
[328648991,1717675843214,-806.82910337,0.0002739,2]
[328648992,1717675843224,-396.57076707,0.00027397,2]
[328648993,1717675843233,-171.06,0.00027397,2]
[328648994,1717675843245,-192.613746,0.00027397,7]
[328648995,1717675843254,-151.0,0.00027397,7]
[328648996,1717675843264,-151.0,0.00027397,7]
[328648997,1717675843274,-151.0,0.00027397,7]
[328648998,1717675843285,-390.08,0.00027397,10]
[328648999,1717675843295,-886.55,0.00027397,10]
[328649000,1717675843304,-160.03,0.000274,2]
[328649001,1717675843314,-160.03,0.000274,2]
[328649002,1717675843324,-152.0,0.00027428,3]
[328649003,1717675843334,-1000.0,0.00027515,2]
[328649004,1717675843343,-201.0,0.0002755,2]
[328649005,1717675843354,-213.0,0.0002755,2]
[328649006,1717675843364,-641.26,0.00027553,2]
[328649007,1717675843373,-150.0,0.000276,5]
[328649008,1717675843382,-1200.0,0.00027614,2]
[328649009,1717675843392,-151.0,0.00027614,7]
[328649011,1717675843402,-11367.925933,0.00027615,2]
[328649012,1717675843411,-9227.163915,0.00027615,2]
[328649013,1717675843421,-249.677882,0.00027615,2]
[328649014,1717675843430,-8581.877331,0.00027615,2]
[328649015,1717675843440,-447.596119,0.00027615,2]
[328649016,1717675843452,-177.973043,0.00027615,2]
[328649017,1717675843462,-326.505974,0.00027615,2]
[328649018,1717675843471,-9517.00699,0.00027615,2]
[328649019,1717675843481,-12587.057987,0.00027615,2]
[328649020,1717675843491,-199.648314,0.00027615,2]
[328649021,1717675843501,-151.0,0.00027615,7]
[328649022,1717675843511,-151.0,0.00027615,7]
[328649023,1717675843522,-151.0,0.00027615,7]
[328649024,1717675843532,-151.0,0.00027615,7]
[328649025,1717675843542,-182.844305,0.00027615,7]
[328649026,1717675843552,-199.390465,0.00027615,7]
[328649027,1717675843562,-199.390465,0.00027615,7]
[328649028,1717675843572,-151.0,0.00027615,7]
[328649029,1717675843582,-203.616676,0.00027615,7]
[328649030,1717675843592,-151.0,0.00027615,7]
[328649031,1717675843603,-151.0,0.00027615,7]
[328649032,1717675843613,-151.0,0.00027615,7]
[328649033,1717675843623,-281.697732,0.00027615,7]
[328649034,1717675843633,-281.697732,0.00027615,7]
[328649035,1717675843643,-299.753212,0.00027615,7]
[328649036,1717675843652,-299.753212,0.00027615,7]
[328649037,1717675843662,-151.0,0.00027615,7]
[328649038,1717675843672,-151.0,0.00027615,7]
[328649039,1717675843681,-151.0,0.00027615,7]
[328649040,1717675843691,-151.0,0.00027615,7]
[328649041,1717675843700,-161.478198,0.00027615,7]
[328649042,1717675843710,-161.478198,0.00027615,7]
[328649043,1717675843719,-151.0,0.00027615,7]
[328649044,1717675843728,-287.869641,0.00027615,7]
[328649045,1717675843738,-204.702822,0.00027615,7]
[328649046,1717675843759,-287.869641,0.00027615,7]
[328649047,1717675843771,-311.130709,0.00027615,7]
[328649048,1717675843781,-163.522304,0.00027615,7]
[328649049,1717675843791,-311.130709,0.00027615,7]
[328649050,1717675843802,-422.102804,0.00027615,7]
[328649051,1717675843812,-422.102804,0.00027615,7]
[328649052,1717675843822,-151.0,0.00027615,7]
[328649053,1717675843832,-1869.17864,0.00027615,7]
[328649054,1717675843842,-1869.17864,0.00027615,7]
[328649055,1717675843854,-151.0,0.00027615,7]
[328649056,1717675843865,-151.0,0.00027615,7]
[328649057,1717675843875,-151.0,0.00027615,7]
[328649058,1717675843886,-151.0,0.00027615,7]
[328649059,1717675843896,-265.543939,0.00027615,7]
[328649060,1717675843906,-194.411714,0.00027615,7]
[328649061,1717675843916,-151.0,0.00027615,7]
[328649062,1717675843927,-189.769808,0.00027704,2]
[328649063,1717675843938,-900.0,0.00027888,2]
[328649064,1717675843952,-2400.0,0.000279,10]
[328649065,1717675843964,-11367.925933,0.0002796,2]
[328649066,1717675843976,-9227.163915,0.0002796,2]
[328649067,1717675843986,-249.677882,0.0002796,2]
[328649068,1717675843998,-8581.877331,0.0002796,2]
[328649069,1717675844009,-447.596119,0.0002796,2]
[328649070,1717675844020,-326.505974,0.0002796,2]
[328649071,1717675844031,-9517.00699,0.0002796,2]
[328649072,1717675844041,-12587.057987,0.0002796,2]
[328649073,1717675844052,-199.648314,0.0002796,2]
[328649074,1717675844062,-151.0,0.0002796,7]
[328649075,1717675844072,-151.0,0.0002796,7]
[328649076,1717675844082,-151.0,0.0002796,7]
[328649077,1717675844093,-151.0,0.0002796,7]
[328649078,1717675844104,-229.19145,0.0002796,7]
[328649079,1717675844114,-151.0,0.0002796,7]
[328649080,1717675844123,-151.0,0.0002796,7]
[328649081,1717675844133,-151.0,0.0002796,7]
[328649082,1717675844143,-308.001283,0.0002796,7]
[328649083,1717675844153,-308.001283,0.0002796,7]
[328649084,1717675844163,-151.0,0.0002796,7]
[328649085,1717675844172,-151.0,0.0002796,7]
[328649086,1717675844182,-151.0,0.0002796,7]
[328649087,1717675844192,-151.0,0.0002796,7]
[328649088,1717675844203,-191.074099,0.0002796,7]
[328649089,1717675844214,-191.074099,0.0002796,7]
[328649090,1717675844223,-215.91804,0.0002796,7]
[328649091,1717675844236,-215.91804,0.0002796,7]
[328649092,1717675844246,-174.86257571,0.0002799,2]
[328649093,1717675844258,-146957.83337064,0.00028,15]
[328649094,1717675844268,-1000.0,0.00028,7]
[328649095,1717675844279,-151.0,0.00028,7]
[328649096,1717675844289,-151.0,0.00028,7]
[328649097,1717675844302,-239.953888,0.00028,7]
[328649098,1717675844313,-151.0,0.00028,7]
[328649099,1717675844324,-151.0,0.00028,7]
[328649100,1717675844334,-151.0,0.00028,7]
[328649101,1717675844344,-151.0,0.00028,7]
[328649102,1717675844354,-199.390465,0.00028,7]
[328649103,1717675844364,-199.390465,0.00028,7]
[328649104,1717675844374,-151.0,0.00028,7]
[328649105,1717675844385,-151.0,0.00028,7]
[328649106,1717675844395,-151.0,0.00028,7]
[328649107,1717675844405,-151.0,0.00028,7]
[328649108,1717675844415,-281.697732,0.00028,7]
[328649109,1717675844426,-281.697732,0.00028,7]
[328649110,1717675844436,-299.753212,0.00028,7]
[328649111,1717675844446,-299.753212,0.00028,7]
[328649112,1717675844456,-151.0,0.00028,7]
[328649113,1717675844466,-151.0,0.00028,7]
[328649114,1717675844476,-151.0,0.00028,7]
[328649115,1717675844486,-151.0,0.00028,7]
[328649116,1717675844497,-233.611318,0.00028,7]
[328649117,1717675844507,-151.0,0.00028,7]
[328649118,1717675844518,-151.0,0.00028,7]
[328649119,1717675844529,-308.001283,0.00028,7]
[328649120,1717675844539,-308.001283,0.00028,7]
[328649121,1717675844549,-151.0,0.00028,7]
[328649122,1717675844559,-151.0,0.00028,7]
[328649123,1717675844569,-151.0,0.00028,7]
[328649124,1717675844579,-161.478198,0.00028,7]
[328649125,1717675844588,-161.478198,0.00028,7]
[328649126,1717675844598,-151.0,0.00028,7]
[328649127,1717675844609,-278.843408,0.00028,7]
[328649128,1717675844619,-151.0,0.00028,7]
[328649129,1717675844628,-151.0,0.00028,7]
[328649130,1717675844638,-191.074099,0.00028,7]
[328649131,1717675844648,-191.074099,0.00028,7]
[328649132,1717675844661,-215.91804,0.00028,7]
[328649133,1717675844671,-215.91804,0.00028,7]
[328649134,1717675844682,-151.0,0.00028,7]
[328649135,1717675844692,-287.869641,0.00028,7]
[328649136,1717675844702,-287.869641,0.00028,7]
[328649137,1717675844714,-311.130709,0.00028,7]
[328649138,1717675844726,-311.130709,0.00028,7]
[328649139,1717675844737,-422.102804,0.00028,7]
[328649140,1717675844747,-422.102804,0.00028,7]
[328649141,1717675844758,-151.0,0.00028,7]
[328649142,1717675844768,-1869.17864,0.00028,7]
[328649143,1717675844778,-1869.17864,0.00028,7]
[328649144,1717675844788,-151.0,0.00028,7]
[328649145,1717675844798,-151.0,0.00028,7]
[328649146,1717675844808,-151.0,0.00028,7]
[328649147,1717675844819,-151.0,0.00028,7]
[328649148,1717675844830,-194.411714,0.00028,7]
[328649149,1717675844842,-151.0,0.00028,7]
[328649150,1717675844852,-150.0,0.000281,5]
[328649151,1717675844863,-3923.45973709,0.00028111,2]
[328649152,1717675844873,-1870.66348402,0.00028111,2]
[328649153,1717675844883,-500.0,0.00028162,2]
[328649154,1717675844894,-201.0,0.0002823,2]
[328649155,1717675844905,-213.0,0.0002823,2]
[328649156,1717675844915,-219.485714,0.00028305,7]
[328649157,1717675844925,-151.0,0.00028305,7]
[328649158,1717675844937,-11367.925933,0.00028305,2]
[328649159,1717675844947,-9227.163915,0.00028305,2]
[328649160,1717675844959,-249.677882,0.00028305,2]
[328649161,1717675844970,-8581.877331,0.00028305,2]
[328649162,1717675844981,-447.596119,0.00028305,2]
[328649163,1717675844991,-326.505974,0.00028305,2]
[328649164,1717675845001,-9517.00699,0.00028305,2]
[328649165,1717675845011,-12587.057987,0.00028305,2]
[328649166,1717675845021,-199.648314,0.00028305,2]
[328649167,1717675845032,-177.973043,0.00028305,2]
[328649168,1717675845042,-460.54321371,0.00028368,7]
[328649169,1717675845052,-1585.31781982,0.00028368,2]
[328649170,1717675845063,-189.769808,0.00028397,2]
[328649171,1717675845073,-500.0,0.00028436,2]
[328649172,1717675845085,-319.47107319,0.00028436,2]
[328649173,1717675845095,-1846.66022326,0.00028511,2]
[328649174,1717675845107,-1394.82079685,0.0002859,2]
[328649175,1717675845117,-150.0,0.000286,5]
[328649176,1717675845127,-150.5,0.0002864,15]
[328649177,1717675845137,-151.0,0.0002865,7]
[328649178,1717675845149,-151.0,0.0002865,7]
[328649179,1717675845160,-232.13401,0.0002865,7]
[328649180,1717675845171,-151.0,0.0002865,7]
[328649181,1717675845181,-199.390465,0.0002865,7]
[328649182,1717675845192,-199.390465,0.0002865,7]
[328649183,1717675845203,-151.0,0.0002865,7]
[328649184,1717675845217,-151.0,0.0002865,7]
[328649185,1717675845227,-151.0,0.0002865,7]
[328649186,1717675845236,-151.0,0.0002865,7]
[328649187,1717675845246,-281.697732,0.0002865,7]
[328649188,1717675845260,-281.697732,0.0002865,7]
[328649189,1717675845271,-299.753212,0.0002865,7]
[328649190,1717675845283,-299.753212,0.0002865,7]
[328649191,1717675845295,-209.488092,0.0002865,7]
[328649192,1717675845306,-151.0,0.0002865,7]
[328649193,1717675845317,-151.0,0.0002865,7]
[328649194,1717675845328,-308.001283,0.0002865,7]
[328649195,1717675845338,-308.001283,0.0002865,7]
[328649196,1717675845348,-151.0,0.0002865,7]
[328649197,1717675845361,-151.0,0.0002865,7]
[328649198,1717675845372,-151.0,0.0002865,7]
[328649199,1717675845383,-161.478198,0.0002865,7]
[328649200,1717675845394,-161.478198,0.0002865,7]
[328649201,1717675845405,-151.0,0.0002865,7]
[328649202,1717675845416,-151.0,0.0002865,7]
[328649203,1717675845428,-296.818045,0.0002865,7]
[328649204,1717675845439,-191.074099,0.0002865,7]
[328649205,1717675845449,-191.074099,0.0002865,7]
[328649206,1717675845459,-215.91804,0.0002865,7]
[328649207,1717675845470,-215.91804,0.0002865,7]
[328649208,1717675845480,-151.0,0.0002865,7]
[328649209,1717675845491,-287.869641,0.0002865,7]
[328649210,1717675845502,-287.869641,0.0002865,7]
[328649211,1717675845512,-311.130709,0.0002865,7]
[328649212,1717675845523,-311.130709,0.0002865,7]
[328649213,1717675845533,-422.102804,0.0002865,7]
[328649214,1717675845544,-422.102804,0.0002865,7]
[328649215,1717675845554,-151.0,0.0002865,7]
[328649216,1717675845564,-1869.17864,0.0002865,7]
[328649217,1717675845575,-1869.17864,0.0002865,7]
[328649218,1717675845586,-151.0,0.0002865,7]
[328649219,1717675845596,-157.720366,0.0002865,7]
[328649220,1717675845608,-151.0,0.0002865,7]
[328649221,1717675845618,-151.0,0.0002865,7]
[328649222,1717675845628,-194.411714,0.0002865,7]
[328649223,1717675845639,-151.0,0.0002865,7]
[328649224,1717675845650,-11367.925933,0.0002865,2]
[328649225,1717675845660,-9227.163915,0.0002865,2]
[328649226,1717675845671,-249.677882,0.0002865,2]
[328649227,1717675845681,-8581.877331,0.0002865,2]
[328649228,1717675845691,-447.596119,0.0002865,2]
[328649229,1717675845702,-326.505974,0.0002865,2]
[328649230,1717675845712,-9517.00699,0.0002865,2]
[328649231,1717675845722,-12587.057987,0.0002865,2]
[328649232,1717675845732,-199.648314,0.0002865,2]
[328649233,1717675845742,-19691.31609237,0.000287,2]
[328649234,1717675845752,-1200.0,0.0002871,2]
[328649235,1717675845762,-2829.228157,0.00028745,15]
[328649236,1717675845773,-151.0,0.00028767,7]
[328649237,1717675845783,-166.06,0.0002879,15]